[Event "Aarhusmesterskabet 2020"]
[Site "Aarhus"]
[Date "2020.02.16"]
[Round "6.10"]
[White "Nguyen, Phong Van"]
[Black "Poulsen, Knud"]
[Result "1-0"]
[ECO "B23"]
[WhiteElo "1743"]
[BlackElo "1727"]
[Annotator "NA RC"]
[PlyCount "73"]
[EventDate "2020.02.14"]
[EventType "swiss"]
[EventCountry "DEN"]
[SourceTitle "playchess.com"]
[Source "ChessBase"]
[SourceQuality "1"]
[TimeControl "40/5400+30:1800+30"]

1. e4 {[%emt 0:00:13]} c5 {[%emt 0:00:00]} 2. Nc3 {[%emt 0:00:20]} Nc6 {[%emt 0:01:22]} 3. f4 {[%emt 0:00:46]} e6 {[%emt 0:02:19]} 4. Bb5 {[%emt 0:01:14]} g6 {[%emt 0:02:08]} 5. Bxc6 {[%emt 0:00:36]} dxc6 {[%emt 0:00:54]} 6. Nf3 {[%emt 0:00:24]} Bg7 {[%emt 0:00:56]} 7. O-O {[%emt 0:01:36]} Ne7 {[%emt 0:00:47]} 8. e5 {[%emt 0:02:56]} Nf5 {[%emt 0:02:39]} 9. Ne4 {[%emt 0:01:26]} O-O {[%emt 0:03:46]} 10. Kh1 {[%emt 0:05:26]} b6 {[%emt 0:01:50]} 11. b3 {[%emt 0:09:35]} Ba6 {[%emt 0:06:06]} 12. c4 {[%emt 0:01:01]} Qe7 {[%emt 0:09:15]} 13. Bb2 {[%emt 0:02:11]} Rad8 {[%emt 0:05:31]} 14. g4 {[%emt 0:08:01]} Nd4 {[%emt 0:03:34]} 15. Nxd4 {[%emt 0:01:23]} cxd4 {[%emt 0:02:20]} 16. g5 {[%emt 0:00:42]} c5 {[%emt 0:05:13]} 17. d3 {[%emt 0:03:02]} Bb7 {[%emt 0:01:19]} 18. Qe1 {[%emt 0:02:45]} h5 {[%emt 0:00:48]} 19. gxh6 {[%emt 0:11:16]} Bxh6 {[%emt 0:01:39]} 20. Qg3 {[%emt 0:00:25]} f5 {[%emt 0:04:27]} 21. exf6 {[%emt 0:04:29]} Rxf6 {[%emt 0:03:50]} 22. Kg1 {[%emt 0:02:58]} Bxe4 {[%emt 0:01:42]} 23. dxe4 {[%emt 0:00:15]} Qf7 {[%emt 0:02:05]} 24. Qh4 {[%emt 0:06:38]} Qg7 {[%emt 0:00:52]} 25. e5 {[%emt 0:02:45]} Rff8 26. Qg4 Rf5 {[%emt 0:06:36]} 27. Rf3 {[%emt 0:01:53]} Rdf8 {[%emt 0:03:49]} 28. Raf1 {[%emt 0:00:14]} Qf7 {[%emt 0:01:14]} 29. Bc1 {[%emt 0:00:26]} Kh7 {[%emt 0:02:57]} 30. Kg2 {[%emt 0:06:23]} Qb7 {[%emt 0:02:35]} 31. Qh4 {[%emt 0:02:09]} Kg7 {[%emt 0:02:06]} 32. Kg1 {[%emt 0:02:42]} Rh8 33. Rg3 Qf7 {[%emt 0:07:25]} 34. Qg4 {[%emt 0:02:11]} Kh7 {[%emt 0:02:49]} 35. Rf2 {[%emt 0:02:03]} g5 {[%emt 0:03:57]} 36. fxg5 {[%emt 0:02:45]} Rxf2 {[%emt 0:02:47]} 37. g6+ 1-0

[Event "Aarhusmesterskabet 2020"]
[Site "Aarhus"]
[Date "2020.02.16"]
[Round "6.11"]
[White "Zander, Emil"]
[Black "Nielsen, Ture Jungberg"]
[Result "0-1"]
[ECO "A45"]
[WhiteElo "1462"]
[BlackElo "1760"]
[Annotator "NA RC"]
[PlyCount "26"]
[EventDate "2020.02.14"]
[EventType "swiss"]
[EventCountry "DEN"]
[SourceTitle "playchess.com"]
[Source "ChessBase"]
[SourceQuality "1"]
[TimeControl "40/5400+30:1800+30"]

1. d4 {[%emt 0:00:00]} Nf6 {[%emt 0:00:00]} 2. Bf4 {[%emt 0:00:16]} c5 {[%emt 0:00:00]} 3. e3 {[%emt 0:00:06]} Qb6 {[%emt 0:01:07]} 4. b3 {[%emt 0:02:33]} d5 {[%emt 0:02:42]} 5. Nf3 {[%emt 0:03:01]} Bg4 {[%emt 0:01:43]} 6. Be2 {[%emt 0:03:13]} Nc6 {[%emt 0:02:03]} 7. c3 {[%emt 0:04:37]} e6 {[%emt 0:08:06]} 8. O-O {[%emt 0:06:14]} Be7 {[%emt 0:02:20]} 9. h3 {[%emt 0:02:19]} Bf5 {[%emt 0:03:05]} 10. Nh4 {[%emt 0:04:31]} Bxb1 {[%emt 0:00:31]} 11. Qxb1 {[%emt 0:03:47]} Ne4 {[%emt 0:00:08]} 12. Nf3 {[%emt 0:00:05]} Nxc3 {[%emt 0:00:07]} 13. dxc5 {[%emt 0:00:36]} Nxe2+ {[%emt 0:00:38]} 0-1

[Event "Aarhusmesterskabet 2020"]
[Site "Aarhus"]
[Date "2020.02.16"]
[Round "7.2"]
[White "Ochsner, Bjorn Moller"]
[Black "Nielsen, Viktor Haarmark"]
[Result "1-0"]
[ECO "B40"]
[WhiteElo "2472"]
[BlackElo "2300"]
[Annotator "ChessBase"]
[PlyCount "65"]
[EventDate "2020.02.14"]
[EventType "swiss"]
[EventCountry "DEN"]
[SourceTitle "playchess.com"]
[Source "ChessBase"]
[SourceQuality "1"]
[TimeControl "40/5400+30:1800+30"]

1. e4 {[%emt 0:02:20]} c5 {[%emt 0:00:00]} 2. Nf3 {[%emt 0:00:08]} e6 {[%emt 0:00:00]} 3. c3 {[%emt 0:00:05]} Nf6 {[%emt 0:00:00]} 4. e5 {[%emt 0:00:16]} Nd5 {[%emt 0:00:13]} 5. Bc4 {[%emt 0:00:07]} d6 {[%emt 0:04:37]} 6. d4 {[%emt 0:00:11]} cxd4 {[%emt 0:02:19]} 7. cxd4 {[%emt 0:00:09]} Nc6 {[%emt 0:00:55]} 8. O-O {[%emt 0:00:17]} Be7 {[%emt 0:03:51]} 9. exd6 {[%emt 0:00:23]} Qxd6 {[%emt 0:00:51]} 10. Nc3 {[%emt 0:00:25]} Nxc3 {[%emt 0:05:27]} 11. bxc3 {[%emt 0:00:08]} O-O {[%emt 0:00:10]} 12. Re1 {[%emt 0:00:58]} b6 {[%emt 0:01:44]} 13. Qe2 {[%emt 0:00:57]} Bb7 {[%emt 0:09:31]} 14. Bd3 {[%emt 0:10:56]} Na5 {[%emt 0:11:01]} 15. Ne5 {[%emt 0:06:47]} Qd5 {[%emt 0:05:05]} 16. Qg4 {[%emt 0:05:18]} f5 {[%emt 0:00:17]} 17. Qg3 {[%emt 0:03:02]} Rac8 {[%emt 0:02:45]} 18. Bf1 {[%emt 0:08:33]} Qd8 {[%emt 0:10:33]} 19. Bh6 {[%emt 0:14:48]} Bf6 {[%emt 0:00:20]} 20. h4 {[%emt 0:03:54]} Bd5 {[%emt 0:05:29]} 21. h5 {[%emt 0:06:24]} Nc6 {[%emt 0:11:18]} 22. Nd3 {[%emt 0:17:47]} Rf7 {[%emt 0:05:59]} 23. Bd2 {[%emt 0:01:57]} Bc4 {[%emt 0:03:03]} 24. Nf4 {[%emt 0:02:03]} Bxf1 {[%emt 0:03:38]} 25. Nxe6 {[%emt 0:00:47]} Qd7 {[%emt 0:01:54]} 26. Kxf1 {[%emt 0:00:12]} b5 {[%emt 0:00:22]} 27. Bg5 {[%emt 0:06:25]} Bxg5 {[%emt 0:03:35]} 28. Qxg5 {[%emt 0:00:17]} Rf6 {[%emt 0:00:48]} 29. d5 {[%emt 0:02:41]} Nd8 {[%emt 0:02:44]} 30. Nxg7 {[%emt 0:01:25]} Qxg7 {[%emt 0:02:16]} 31. Re8+ {[%emt 0:00:08]} Rf8 {[%emt 0:00:11]} 32. Rxf8+ {[%emt 0:00:06]} Kxf8 {[%emt 0:00:04]} 33. Qxf5+ {[%emt 0:00:05]} 1-0

[Event "Aarhusmesterskabet 2020"]
[Site "Aarhus"]
[Date "2020.02.16"]
[Round "7.3"]
[White "Dumas, Charles"]
[Black "Schmidt, Tommy B."]
[Result "1/2-1/2"]
[ECO "C03"]
[WhiteElo "2289"]
[BlackElo "2166"]
[Annotator "ChessBase"]
[PlyCount "88"]
[EventDate "2020.02.14"]
[EventType "swiss"]
[EventCountry "DEN"]
[SourceTitle "playchess.com"]
[Source "ChessBase"]
[SourceQuality "1"]
[TimeControl "40/5400+30:1800+30"]

1. e4 {[%emt 0:00:00]} e6 {[%emt 0:00:00]} 2. d4 {[%emt 0:00:00]} d5 {[%emt 0:00:00]} 3. Nd2 {[%emt 0:00:00]} Be7 {[%emt 0:00:00]} 4. Ngf3 {[%emt 0:00:08]} Nf6 {[%emt 0:00:00]} 5. e5 {[%emt 0:00:12]} Nfd7 {[%emt 0:00:00]} 6. Bd3 {[%emt 0:00:24]} c5 {[%emt 0:00:07]} 7. c3 {[%emt 0:00:04]} cxd4 {[%emt 0:00:35]} 8. cxd4 {[%emt 0:00:08]} Nc6 {[%emt 0:00:06]} 9. O-O {[%emt 0:00:50]} a5 {[%emt 0:00:21]} 10. a4 {[%emt 0:08:58]} g5 {[%emt 0:04:14]} 11. Nb3 {[%emt 0:04:08]} g4 {[%emt 0:02:43]} 12. Ne1 {[%emt 0:01:32]} f5 {[%emt 0:03:17]} 13. exf6 {[%emt 0:02:09]} Nxf6 {[%emt 0:00:24]} 14. Bh6 {[%emt 0:09:11]} Qb6 {[%emt 0:04:46]} 15. Rc1 {[%emt 0:01:42]} Bd7 {[%emt 0:04:17]} 16. Bb5 {[%emt 0:01:43]} Rg8 {[%emt 0:01:55]} 17. Nc5 {[%emt 0:04:21]} Bd6 {[%emt 0:05:53]} 18. Be3 {[%emt 0:03:35]} h5 {[%emt 0:01:50]} 19. Ned3 {[%emt 0:02:19]} Qc7 {[%emt 0:02:46]} 20. g3 {[%emt 0:01:16]} Ke7 {[%emt 0:08:49]} 21. Bf4 {[%emt 0:02:01]} Ne4 {[%emt 0:05:21]} 22. Re1 {[%emt 0:03:34]} Nxc5 {[%emt 0:08:23]} 23. Bxd6+ {[%emt 0:01:34]} Qxd6 {[%emt 0:00:50]} 24. Nxc5 {[%emt 0:00:18]} Rab8 {[%emt 0:03:04]} 25. Qd3 {[%emt 0:03:43]} Rg7 {[%emt 0:00:17]} 26. Qe3 {[%emt 0:01:08]} Rg6 {[%emt 0:01:55]} 27. b3 {[%emt 0:01:17]} Be8 {[%emt 0:02:23]} 28. Bxc6 {[%emt 0:01:53]} bxc6 {[%emt 0:00:31]} 29. Qc3 {[%emt 0:07:45]} Qd8 {[%emt 0:03:16]} 30. Re5 {[%emt 0:01:00]} Rf6 {[%emt 0:00:31]} 31. Rce1 {[%emt 0:01:31]} Bf7 {[%emt 0:00:28]} 32. Qe3 {[%emt 0:02:48]} Qg8 {[%emt 0:00:43]} 33. Rg5 {[%emt 0:00:45]} Qh7 {[%emt 0:02:12]} 34. Qe5 {[%emt 0:02:15]} Rc8 {[%emt 0:00:25]} 35. Nb7 {[%emt 0:01:50]} Qc2 {[%emt 0:01:32]} 36. Re2 {[%emt 0:04:59]} Qd1+ {[%emt 0:06:20]} 37. Kg2 {[%emt 0:04:00]} Qxb3 {[%emt 0:02:26]} 38. Qd6+ {[%emt 0:02:10]} Ke8 {[%emt 0:00:23]} 39. Nc5 {[%emt 0:00:56]} Qf3+ {[%emt 0:04:14]} 40. Kg1 {[%emt 0:00:09]} Qxe2 {[%emt 0:01:20]} 41. Qd7+ {[%emt 0:30:36]} Kf8 {[%emt 0:30:07]} 42. Qxc8+ {[%emt 0:02:52]} Be8 {[%emt 0:00:13]} 43. Nd7+ {[%emt 0:00:48]} Ke7 {[%emt 0:02:28]} 44. Nxf6 {[%emt 0:04:59]} Qd1+ {[%emt 0:00:16]} 1/2-1/2

[Event "Aarhusmesterskabet 2020"]
[Site "Aarhus"]
[Date "2020.02.16"]
[Round "7.6"]
[White "Klitgaard, Thomas"]
[Black "Thybo, Thomas Sondergaard"]
[Result "1/2-1/2"]
[ECO "A45"]
[WhiteElo "2187"]
[BlackElo "2075"]
[Annotator "ChessBase"]
[PlyCount "92"]
[EventDate "2020.02.14"]
[EventType "swiss"]
[EventCountry "DEN"]
[SourceTitle "playchess.com"]
[Source "ChessBase"]
[SourceQuality "1"]
[TimeControl "40/5400+30:1800+30"]

1. d4 {[%emt 0:00:00]} Nf6 {[%emt 0:00:00]} 2. Bg5 {[%emt 0:00:00]} c5 {[%emt 0:00:00]} 3. d5 {[%emt 0:00:21]} Ne4 {[%emt 0:00:00]} 4. Bf4 {[%emt 0:00:17]} e6 {[%emt 0:00:00]} 5. f3 {[%emt 0:05:20]} Bd6 {[%emt 0:00:06]} 6. Bxd6 {[%emt 0:01:00]} Nxd6 {[%emt 0:00:06]} 7. e4 {[%emt 0:11:46]} b5 {[%emt 0:00:18]} 8. dxe6 {[%emt 0:07:12]} dxe6 {[%emt 0:01:05]} 9. e5 {[%emt 0:03:02]} Qh4+ {[%emt 0:02:37]} 10. g3 {[%emt 0:04:52]} Qb4+ {[%emt 0:00:04]} 11. Nc3 {[%emt 0:03:01]} Nf5 {[%emt 0:18:04]} 12. Bxb5+ {[%emt 0:09:30]} Bd7 {[%emt 0:00:05]} 13. Qd3 {[%emt 0:04:23]} Nd4 {[%emt 0:02:36]} 14. Bxd7+ {[%emt 0:07:25]} Nxd7 {[%emt 0:00:06]} 15. Rb1 {[%emt 0:02:15]} Nxe5 {[%emt 0:03:44]} 16. Qe4 {[%emt 0:03:53]} Ndxf3+ {[%emt 0:09:50]} 17. Nxf3 {[%emt 0:01:03]} Qxe4+ {[%emt 0:00:05]} 18. Nxe4 {[%emt 0:00:07]} Nxf3+ {[%emt 0:00:05]} 19. Kf2 {[%emt 0:03:32]} Ne5 {[%emt 0:00:12]} 20. Rhd1 {[%emt 0:03:42]} Nd7 {[%emt 0:02:25]} 21. Rd6 {[%emt 0:08:39]} Ke7 {[%emt 0:00:18]} 22. Rbd1 {[%emt 0:01:51]} Rhd8 {[%emt 0:00:55]} 23. Ra6 {[%emt 0:02:33]} h6 {[%emt 0:02:09]} 24. Ke2 {[%emt 0:03:12]} f5 {[%emt 0:01:55]} 25. Nc3 {[%emt 0:01:15]} Rdb8 {[%emt 0:01:23]} 26. Na4 {[%emt 0:03:49]} Rb4 {[%emt 0:00:19]} 27. c3 {[%emt 0:00:57]} Re4+ {[%emt 0:00:05]} 28. Kf1 {[%emt 0:00:47]} Re5 {[%emt 0:03:07]} 29. Rxd7+ {[%emt 0:02:55]} Kxd7 {[%emt 0:00:07]} 30. Nb6+ {[%emt 0:00:08]} axb6 {[%emt 0:00:03]} 31. Rxa8 {[%emt 0:00:03]} g5 {[%emt 0:00:50]} 32. Rh8 {[%emt 0:00:44]} Kc6 {[%emt 0:01:19]} 33. c4 {[%emt 0:02:20]} Re4 {[%emt 0:04:22]} 34. b3 {[%emt 0:00:17]} g4 {[%emt 0:01:01]} 35. Rxh6 {[%emt 0:00:43]} b5 {[%emt 0:00:29]} 36. cxb5+ {[%emt 0:01:13]} Kxb5 {[%emt 0:00:05]} 37. h3 {[%emt 0:01:19]} gxh3 {[%emt 0:00:32]} 38. Rxh3 {[%emt 0:00:12]} Re3 {[%emt 0:02:11]} 39. Rh6 {[%emt 0:01:36]} Rxg3 {[%emt 0:14:24]} 40. Rxe6 {[%emt 0:00:22]} Rh3 {[%emt 0:01:21]} 41. Re2 {[%emt 0:31:58]} Kb4 {[%emt 0:31:01]} 42. Rf2 {[%emt 0:00:18]} Rh1+ {[%emt 0:00:51]} 43. Ke2 {[%emt 0:00:48]} Ra1 {[%emt 0:00:49]} 44. Kf3 {[%emt 0:00:13]} Ka3 {[%emt 0:00:31]} 45. Rc2 {[%emt 0:00:12]} Rxa2 {[%emt 0:00:24]} 46. Rxc5 {[%emt 0:00:11]} Kxb3 {[%emt 0:00:09] Ke4} 1/2-1/2

[Event "Aarhusmesterskabet 2020"]
[Site "Aarhus"]
[Date "2020.02.16"]
[Round "7.8"]
[White "Marthedal, Anton Mehmet Yildiz"]
[Black "Nguyen, Phong Van"]
[Result "0-1"]
[ECO "A40"]
[WhiteElo "1920"]
[BlackElo "1743"]
[Annotator "ChessBase"]
[PlyCount "72"]
[EventDate "2020.02.14"]
[EventType "swiss"]
[EventCountry "DEN"]
[SourceTitle "playchess.com"]
[Source "ChessBase"]
[SourceQuality "1"]
[TimeControl "40/5400+30:1800+30"]

1. d4 {[%emt 0:00:00]} e6 {[%emt 0:04:28]} 2. Bf4 {[%emt 0:00:00]} b6 {[%emt 0:01:07]} 3. e3 {[%emt 0:01:00]} Bb7 {[%emt 0:00:11]} 4. Nf3 {[%emt 0:00:39]} Nf6 {[%emt 0:00:46]} 5. Bd3 {[%emt 0:01:17]} g6 {[%emt 0:02:38]} 6. Nbd2 {[%emt 0:01:25]} Bg7 {[%emt 0:00:18]} 7. Qe2 {[%emt 0:04:54]} d6 {[%emt 0:00:53]} 8. e4 {[%emt 0:02:05]} O-O {[%emt 0:06:48]} 9. h4 {[%emt 0:01:42]} h6 {[%emt 0:04:10]} 10. Rg1 {[%emt 0:04:13]} c5 {[%emt 0:00:29]} 11. dxc5 {[%emt 0:10:19]} bxc5 {[%emt 0:01:25]} 12. g4 {[%emt 0:01:52]} d5 {[%emt 0:01:47]} 13. e5 {[%emt 0:03:00]} Nfd7 {[%emt 0:00:46]} 14. c3 {[%emt 0:01:08]} Nc6 {[%emt 0:00:37]} 15. Qe3 {[%emt 0:03:10]} d4 {[%emt 0:05:33]} 16. Qe2 {[%emt 0:04:43]} dxc3 {[%emt 0:02:23]} 17. bxc3 {[%emt 0:00:44]} Ndxe5 {[%emt 0:07:23]} 18. Be4 {[%emt 0:08:03]} Nxf3+ {[%emt 0:01:49]} 19. Qxf3 {[%emt 0:00:30]} Qf6 20. Rb1 {[%emt 0:00:30]} e5 21. Rxb7 {[%emt 0:00:30]} exf4 22. Bxc6 {[%emt 0:00:30]} Rad8 23. g5 {[%emt 0:00:30]} Qe6+ 24. Ne4 {[%emt 0:00:30]} Kh8 25. gxh6 {[%emt 0:00:30]} Bxh6 26. Bb5 {[%emt 0:00:30]} f5 27. Rxa7 {[%emt 0:00:30]} fxe4 28. Qg4 {[%emt 0:00:30]} Qd6 29. Rd7 {[%emt 0:00:30]} Rxd7 30. Qxd7 {[%emt 0:00:30]} Qf6 31. Qd2 {[%emt 0:00:30]} e3 32. Qc2 {[%emt 0:00:30]} f3 33. Rxg6 {[%emt 0:00:30]} exf2+ 34. Kxf2 {[%emt 0:00:30]} Qxh4+ 35. Kf1 {[%emt 0:00:30]} Qh1+ 36. Rg1 {[%emt 0:00:30]} Qh3+ 0-1

[Event "Aarhusmesterskabet 2020"]
[Site "Aarhus"]
[Date "2020.02.16"]
[Round "7.9"]
[White "Andersen, Claus Nis"]
[Black "Hansen, Morten Lyck"]
[Result "1/2-1/2"]
[ECO "D87"]
[WhiteElo "1697"]
[BlackElo "1984"]
[Annotator "ChessBase"]
[PlyCount "42"]
[EventDate "2020.02.14"]
[EventType "swiss"]
[EventCountry "DEN"]
[SourceTitle "playchess.com"]
[Source "ChessBase"]
[SourceQuality "1"]
[TimeControl "40/5400+30:1800+30"]

1. d4 {[%emt 0:00:00]} Nf6 {[%emt 0:00:00]} 2. c4 {[%emt 0:00:00]} g6 {[%emt 0:00:00]} 3. Nc3 {[%emt 0:00:00]} d5 {[%emt 0:00:08]} 4. cxd5 {[%emt 0:02:07]} Nxd5 {[%emt 0:00:05]} 5. e4 {[%emt 0:00:05]} Nxc3 {[%emt 0:00:03]} 6. bxc3 {[%emt 0:00:05]} Bg7 {[%emt 0:00:06]} 7. Bc4 {[%emt 0:00:06]} O-O {[%emt 0:00:09]} 8. Ne2 {[%emt 0:00:44]} c5 {[%emt 0:00:17]} 9. Be3 {[%emt 0:00:18]} Nc6 {[%emt 0:00:09]} 10. O-O {[%emt 0:00:17]} Qc7 {[%emt 0:01:00]} 11. Rc1 {[%emt 0:01:23]} Rd8 {[%emt 0:00:05]} 12. Qc2 {[%emt 0:07:34]} Na5 {[%emt 0:03:24]} 13. Bb3 {[%emt 0:03:32]} Nxb3 {[%emt 0:08:04]} 14. axb3 {[%emt 0:00:21]} b6 {[%emt 0:00:22]} 15. Rfd1 {[%emt 0:01:44]} Ba6 {[%emt 0:05:10]} 16. c4 {[%emt 0:01:27]} cxd4 {[%emt 0:00:46]} 17. Nxd4 {[%emt 0:03:32]} e5 {[%emt 0:02:05]} 18. Ne2 {[%emt 0:00:28]} Rxd1+ {[%emt 0:00:34]} 19. Rxd1 {[%emt 0:10:34]} Rd8 {[%emt 0:00:09]} 20. Nc3 {[%emt 0:00:41]} Rxd1+ {[%emt 0:10:00]} 21. Qxd1 {[%emt 0:01:33]} Qd8 1/2-1/2